Workbook

Sheet juli
A1: datum | B1: INKOMSTEN | D1: groep | E1: Opmerking | F1: UITGAVEN | J1: Totaal juli 2014
A2: 2014-07-01 | B2: Beginsaldo | C2: 100 | D2: Auto | F2: Tanken | G2: 35 | H2: =IF(C2+G2=0,"",H1+C2-G2) -> 65 | J2: Inkomsten: | K2: Uitgaven:
A3: 2014-07-02 | B3: Salaris | C3: 1600 | D3: Auto | E3: incasso | F3: Wegenbel | G3: 70 | H3: =IF(C3+G3=0,"",H2+C3-G3) -> 1595 | J3: =SUM(C:C) -> 2092 | K3: =SUM(G:G) -> 1795
A4: 2014-07-03 | D4: Huis | E4: incasso | F4: Huur | G4: 700 | H4: =IF(C4+G4=0,"",H3+C4-G4) -> 895
A5: 2014-07-06 | D5: Huishouden | F5: Opname | G5: 80 | H5: =IF(C5+G5=0,"",H4+C5-G5) -> 815 | J5: Saldo vandaag: | K5: =VLOOKUP(TODAY(),A:H,8,1) -> 360.5
A6: 2014-07-07 | D6: Auto | F6: Tanken | G6: 30 | H6: =IF(C6+G6=0,"",H5+C6-G6) -> 785
A7: 2014-07-08 | D7: Huishouden | F7: Supermarkt | G7: 60 | H7: =IF(C7+G7=0,"",H6+C7-G7) -> 725 | J7: Totaal per groep:
A8: 2014-07-09 | D8: Kleding | F8: Kleedgeld dochter | G8: 45 | H8: =IF(C8+G8=0,"",H7+C8-G8) -> 680 | J8: Huis | K8: =SUMIF(D:D,J8,G:G) -> 700
A9: 2014-07-10 | D9: Auto | F9: Garage | G9: 400 | H9: =IF(C9+G9=0,"",H8+C9-G9) -> 280 | J9: Auto | K9: =SUMIF(D:D,J9,G:G) -> 535
A10: 2014-07-12 | D10: Abonn | E10: incasso | F10: ComputerIdee | G10: 71.5 | H10: =IF(C10+G10=0,"",H9+C10-G10) -> 208.5 | J10: Kleding | K10: =SUMIF(D:D,J10,G:G) -> 240
A11: 2014-07-12 | D11: Kleding | F11: Jurk | G11: 80 | H11: =IF(C11+G11=0,"",H10+C11-G11) -> 128.5 | J11: Huishouden | K11: =SUMIF(D:D,J11,G:G) -> 220
A12: 2014-07-15 | D12: Huishouden | F12: Supermarkt | G12: 55 | H12: =IF(C12+G12=0,"",H11+C12-G12) -> 73.5 | J12: Abonn | K12: =SUMIF(D:D,J12,G:G) -> 100
A13: 2014-07-15 | B13: VT Bel | C13: 392 | D13: Kleding | F13: Broek | G13: 80 | H13: =IF(C13+G13=0,"",H12+C13-G13) -> 385.5
A14: 2014-08-02 | D14: Huishouden | F14: Supermarkt | G14: 25 | H14: =IF(C14+G14=0,"",H13+C14-G14) -> 360.5
A15: 2014-08-03 | D15: Kleding | F15: Fietsreparatie | G15: 35 | H15: =IF(C15+G15=0,"",H14+C15-G15) -> 325.5
A16: 2014-08-04 | D16: Abonn | E16: incasso | F16: Krant | G16: 28.5 | H16: =IF(C16+G16=0,"",H15+C16-G16) -> 297
A17: 2014-08-05 | H17: =IF(C17+G17=0,"",H16+C17-G17) -> 
A18: 2014-08-06 | H18: =IF(C18+G18=0,"",H17+C18-G18) -> 
H19: =IF(C19+G19=0,"",H18+C19-G19) -> 
H20: =IF(C20+G20=0,"",H19+C20-G20) -> 
H21: =IF(C21+G21=0,"",H20+C21-G21) -> 
H22: =IF(C22+G22=0,"",H21+C22-G22) -> 
H23: =IF(C23+G23=0,"",H22+C23-G23) -> 
H24: =IF(C24+G24=0,"",H23+C24-G24) -> 
H25: =IF(C25+G25=0,"",H24+C25-G25) -> 
H26: =IF(C26+G26=0,"",H25+C26-G26) -> 
H27: =IF(C27+G27=0,"",H26+C27-G27) -> 
H28: =IF(C28+G28=0,"",H27+C28-G28) -> 
H29: =IF(C29+G29=0,"",H28+C29-G29) -> 
H30: =IF(C30+G30=0,"",H29+C30-G30) -> 
H31: =IF(C31+G31=0,"",H30+C31-G31) -> 
H32: =IF(C32+G32=0,"",H31+C32-G32) -> 
H33: =IF(C33+G33=0,"",H32+C33-G33) -> 
H34: =IF(C34+G34=0,"",H33+C34-G34) -> 
H35: =IF(C35+G35=0,"",H34+C35-G35) -> 
H36: =IF(C36+G36=0,"",H35+C36-G36) -> 
H37: =IF(C37+G37=0,"",H36+C37-G37) -> 
H38: =IF(C38+G38=0,"",H37+C38-G38) -> 
H39: =IF(C39+G39=0,"",H38+C39-G39) -> 
H40: =IF(C40+G40=0,"",H39+C40-G40) -> 
H41: =IF(C41+G41=0,"",H40+C41-G41) -> 
H42: =IF(C42+G42=0,"",H41+C42-G42) -> 
H43: =IF(C43+G43=0,"",H42+C43-G43) -> 
H44: =IF(C44+G44=0,"",H43+C44-G44) -> 
H45: =IF(C45+G45=0,"",H44+C45-G45) -> 
H46: =IF(C46+G46=0,"",H45+C46-G46) -> 
H47: =IF(C47+G47=0,"",H46+C47-G47) -> 
H48: =IF(C48+G48=0,"",H47+C48-G48) -> 
H49: =IF(C49+G49=0,"",H48+C49-G49) -> 
H50: =IF(C50+G50=0,"",H49+C50-G50) -> 
H51: =IF(C51+G51=0,"",H50+C51-G51) -> 
H52: =IF(C52+G52=0,"",H51+C52-G52) -> 
H53: =IF(C53+G53=0,"",H52+C53-G53) -> 
H54: =IF(C54+G54=0,"",H53+C54-G54) -> 
H55: =IF(C55+G55=0,"",H54+C55-G55) -> 
H56: =IF(C56+G56=0,"",H55+C56-G56) -> 
H57: =IF(C57+G57=0,"",H56+C57-G57) -> 
H58: =IF(C58+G58=0,"",H57+C58-G58) -> 
H59: =IF(C59+G59=0,"",H58+C59-G59) -> 
H60: =IF(C60+G60=0,"",H59+C60-G60) -> 
H61: =IF(C61+G61=0,"",H60+C61-G61) -> 
H62: =IF(C62+G62=0,"",H61+C62-G62) -> 
H63: =IF(C63+G63=0,"",H62+C63-G63) -> 
H64: =IF(C64+G64=0,"",H63+C64-G64) -> 
H65: =IF(C65+G65=0,"",H64+C65-G65) -> 
H66: =IF(C66+G66=0,"",H65+C66-G66) -> 
H67: =IF(C67+G67=0,"",H66+C67-G67) -> 
H68: =IF(C68+G68=0,"",H67+C68-G68) -> 
H69: =IF(C69+G69=0,"",H68+C69-G69) -> 
H70: =IF(C70+G70=0,"",H69+C70-G70) -> 
H71: =IF(C71+G71=0,"",H70+C71-G71) -> 
H72: =IF(C72+G72=0,"",H71+C72-G72) -> 
H73: =IF(C73+G73=0,"",H72+C73-G73) -> 
H74: =IF(C74+G74=0,"",H73+C74-G74) -> 
H75: =IF(C75+G75=0,"",H74+C75-G75) -> 
H76: =IF(C76+G76=0,"",H75+C76-G76) -> 
H77: =IF(C77+G77=0,"",H76+C77-G77) -> 
H78: =IF(C78+G78=0,"",H77+C78-G78) -> 
H79: =IF(C79+G79=0,"",H78+C79-G79) -> 
H80: =IF(C80+G80=0,"",H79+C80-G80) -> 
H81: =IF(C81+G81=0,"",H80+C81-G81) -> 
H82: =IF(C82+G82=0,"",H81+C82-G82) -> 
H83: =IF(C83+G83=0,"",H82+C83-G83) -> 
H84: =IF(C84+G84=0,"",H83+C84-G84) -> 
H85: =IF(C85+G85=0,"",H84+C85-G85) -> 
H86: =IF(C86+G86=0,"",H85+C86-G86) -> 
H87: =IF(C87+G87=0,"",H86+C87-G87) -> 
H88: =IF(C88+G88=0,"",H87+C88-G88) -> 
H89: =IF(C89+G89=0,"",H88+C89-G89) -> 
H90: =IF(C90+G90=0,"",H89+C90-G90) -> 
H91: =IF(C91+G91=0,"",H90+C91-G91) -> 
H92: =IF(C92+G92=0,"",H91+C92-G92) -> 
H93: =IF(C93+G93=0,"",H92+C93-G93) -> 
H94: =IF(C94+G94=0,"",H93+C94-G94) -> 
H95: =IF(C95+G95=0,"",H94+C95-G95) -> 
H96: =IF(C96+G96=0,"",H95+C96-G96) -> 
H97: =IF(C97+G97=0,"",H96+C97-G97) -> 
H98: =IF(C98+G98=0,"",H97+C98-G98) -> 
H99: =IF(C99+G99=0,"",H98+C99-G99) -> 
H100: =IF(C100+G100=0,"",H99+C100-G100) -> 
